bitfinex/quotes_ETHUSD_20260228
["timestamp","ask_amount","ask_price","bid_price","bid_amount"]
[1772273994351,2.759,1858.6,1858.1,6.13509115]
[1772273995349,2.759,1858.6,1858.2,7.47937915]
[1772273995553,6.95147088,1859.0,1858.2,7.47937915]
[1772273995554,5.6066069,1859.0,1858.2,7.47937915]
[1772273995721,2.757,1858.9,1858.3,6.13509115]
[1772273996807,2.757,1858.8,1858.3,6.13509115]
[1772273997235,6.95142189,1859.0,1858.3,6.13509115]
[1772273997236,2.756,1859.0,1858.5,6.13399115]
[1772273997431,4.10081117,1859.0,1858.5,7.47909842]
[1772273997747,2.756,1859.0,1858.6,6.13509115]
[1772273998050,4.10081259,1859.0,1858.6,0.0011]
[1772273998465,5.6066069,1858.9,1858.6,0.0011]
[1772273998622,2.756,1858.8,1858.3,7.4793049]
[1772273998816,8.3615069,1858.8,1858.3,6.13399115]
[1772273999127,5.11264861,1859.0,1858.3,7.47930058]
[1772273999128,1.34481901,1859.0,1858.3,7.47930058]
[1772273999313,4.10089677,1858.9,1858.3,7.47930058]
[1772274000216,5.6055069,1858.8,1858.4,0.0011]
[1772274000718,5.6065069,1858.8,1858.4,0.0011]
[1772274001315,6.95053299,1858.7,1858.1,0.0011]
[1772274002323,6.95053299,1858.7,1858.1,6.13509115]
[1772274002521,6.95053299,1858.7,1858.1,0.0011]
[1772274002522,5.6055069,1858.5,1858.1,0.0011]
[1772274003144,2.758,1858.4,1858.1,6.13509115]
[1772274003519,4.10324347,1858.4,1858.1,6.13509115]
[1772274003720,2.758,1858.4,1858.1,6.13509115]
[1772274004848,4.1032478,1858.4,1858.1,0.0011]
[1772274005843,2.759,1858.7,1858.2,6.13399115]
[1772274006043,6.72593162,1858.6,1858.2,6.13399115]
[1772274006650,6.72593162,1858.5,1858.1,0.0011]
[1772274008239,8.07112838,1858.5,1858.1,0.0011]
[1772274008548,6.72593162,1858.5,1858.1,0.0011]
[1772274009047,8.07111145,1858.5,1858.1,0.0011]
[1772274010337,5.6055069,1858.4,1858.1,0.0011]
[1772274010536,2.761,1858.3,1858.1,0.0011]
[1772274011343,6.72593162,1858.2,1858.1,0.0011]
[1772274011653,8.64769745,1858.3,1857.9,0.0011]
[1772274011830,6.72373162,1858.1,1857.9,0.0011]
[1772274012437,0.28119055,1858.3,1858.2,0.0011]
[1772274012654,3.04519055,1858.3,1858.2,0.0011]
[1772274012855,3.04619055,1858.3,1858.2,0.0011]
[1772274013069,9.76992217,1858.3,1858.2,0.0011]
[1772274013632,0.28219055,1858.3,1858.2,0.0011]
[1772274013844,0.9728521,1858.4,1858.2,6.15805537]
[1772274014058,0.28117486,1858.3,1858.2,7.50338087]
[1772274014239,0.9728521,1858.4,1858.2,7.50338087]
[1772274014441,1.25402962,1858.4,1858.2,7.50338087]
[1772274014963,1.25402962,1858.4,1858.2,6.15805537]
[1772274015330,6.72373162,1858.3,1858.2,0.0011]
[1772274015536,8.48701135,1858.4,1858.0,0.0011]
[1772274015764,6.72263162,1858.2,1858.0,0.0011]
[1772274015961,4.11046041,1858.1,1858.0,0.0011]
[1772274016150,9.48763162,1858.1,1858.0,0.0011]
[1772274016462,2.765,1858.1,1858.0,0.0011]
[1772274017233,9.48763162,1858.1,1858.0,0.0011]
[1772274019334,10.83309203,1858.1,1858.0,0.0011]
[1772274019535,9.48763162,1858.1,1857.9,0.0011]
[1772274019777,6.72263162,1858.0,1857.9,0.0011]
[1772274020072,1.25402962,1858.4,1857.9,6.15805537]
[1772274020272,2.772,1858.3,1857.9,6.15805537]
[1772274021468,2.772,1858.3,1858.0,7.5024882]
[1772274022979,9.49463162,1858.3,1858.0,6.15695537]
[1772274023564,9.49463162,1858.3,1858.0,7.5024374]
[1772274023878,6.72263162,1858.3,1858.0,7.5024374]
[1772274024173,4.02602962,1858.4,1858.1,6.15695537]
[1772274024469,4.02602962,1858.4,1858.1,6.15805537]
[1772274024839,0.001,1858.2,1858.1,6.15805537]
[1772274025445,0.001,1858.2,1858.1,7.50351578]
[1772274028053,0.001,1858.2,1858.1,0.0011]
[1772274029355,0.001,1858.2,1858.0,0.0011]
[1772274029862,2.769,1858.2,1858.0,0.0011]
[1772274030062,2.769,1858.2,1857.9,0.0011]
[1772274030063,9.99990895,1858.2,1857.9,0.0011]
[1772274030263,2.768,1858.1,1857.9,0.0011]
[1772274032265,4.11348815,1858.1,1857.9,0.0011]
[1772274032465,2.768,1858.1,1857.9,0.0011]
[1772274034504,0.001,1858.2,1857.9,0.0011]
[1772274034779,2.773,1858.2,1857.9,6.15805537]
[1772274036358,2.773,1858.2,1857.9,7.50360526]
[1772274037311,2.773,1858.2,1858.0,0.0011]
[1772274038673,2.773,1858.2,1858.0,6.15805537]
[1772274041065,1.25402962,1858.4,1858.1,6.31192378]
[1772274041569,1.25402962,1858.4,1858.0,7.65855473]
[1772274042175,2.769,1858.7,1858.1,6.06006531]
[1772274042487,0.28117014,1858.6,1858.1,6.06006531]
[1772274043160,0.28117014,1858.6,1858.2,1.345388]
[1772274043361,0.28117014,1858.6,1858.3,6.06006531]
[1772274046290,0.28117014,1858.6,1858.3,7.4053757]
[1772274049485,0.001,1858.5,1858.3,7.4053757]
[1772274050203,0.001,1858.5,1858.1,7.40552572]
[1772274050379,0.001,1858.5,1858.2,6.06006531]
[1772274050573,0.001,1858.8,1858.3,6.06006531]
[1772274050775,0.28215166,1858.8,1858.3,6.06006531]
[1772274050980,5.88849745,1859.4,1858.7,6.06006531]
[1772274051193,7.23302062,1859.4,1858.7,6.06006531]
[1772274051700,7.23302062,1859.4,1858.8,7.40501904]
[1772274052009,0.001,1859.4,1858.8,7.40501904]
[1772274052873,2.769,1859.4,1858.8,7.40501904]
[1772274054075,2.769,1859.4,1858.9,6.06006531]
[1772274054277,0.001,1859.4,1858.9,6.06006531]
[1772274055986,0.001,1859.4,1859.0,1.34480903]
[1772274056390,0.001,1859.4,1859.0,7.40487434]
[1772274056778,0.001,1859.4,1858.9,5.37923614]
[1772274056779,5.88849745,1859.4,1858.9,1.34483078]
[1772274057008,0.001,1859.4,1858.9,7.40489609]
[1772274057985,0.001,1859.4,1858.7,5.38010009]
[1772274057986,5.88849745,1859.4,1858.7,11.4401654]
[1772274058193,5.88849745,1859.4,1858.8,6.06006531]
[1772274058712,2.763,1859.4,1858.8,6.06006531]
[1772274060103,0.001,1859.4,1859.0,6.06006531]
[1772274060409,5.88749745,1860.0,1859.3,6.06006531]
[1772274060578,1.34408217,1860.1,1859.3,6.06006531]
[1772274060774,7.23157962,1860.1,1859.3,6.06006531]
[1772274061007,5.88749745,1860.0,1859.0,6.06006531]
[1772274061206,5.88749745,1859.8,1859.0,6.06006531]
[1772274061580,0.001,1859.3,1859.0,6.06006531]
[1772274062328,0.001,1859.3,1859.0,7.40481509]
[1772274062890,0.001,1859.3,1859.0,6.06006531]
[1772274063111,5.88849745,1859.3,1858.7,7.4050914]
[1772274063690,5.88849745,1859.3,1858.7,6.06006531]
[1772274064023,5.88849745,1859.3,1858.4,0.0011]
[1772274064225,5.88749745,1859.1,1858.4,6.06116531]
[1772274064389,5.88749745,1859.1,1858.4,0.0011]
[1772274064596,5.88749745,1859.1,1858.4,6.06116531]
[1772274064796,2.757,1859.0,1858.4,6.06116531]
[1772274065499,8.64449745,1859.0,1858.4,6.06116531]
[1772274066223,1.34488138,1858.9,1858.4,6.06116531]
[1772274066526,5.62355994,1859.6,1858.4,6.06116531]
[1772274066527,7.23135243,1860.4,1859.1,6.06006531]
[1772274066696,1.34388523,1860.3,1859.3,6.06006531]
[1772274067022,7.23134809,1860.4,1859.3,6.06006531]
[1772274067224,5.88749745,1860.4,1859.3,6.06006531]
[1772274067393,0.36737063,1860.5,1859.2,7.57499103]
[1772274067394,0.36737063,1860.5,1859.8,5.27399103]
[1772274067595,5.88749745,1861.1,1860.0,6.06006531]
[1772274067898,0.2808375,1860.7,1860.0,6.06006531]
[1772274068103,2.757,1860.8,1860.0,6.06006531]
[1772274068304,2.757,1860.8,1860.0,7.40410016]
[1772274068305,1.34358037,1860.7,1860.0,7.40410016]
[1772274068516,5.88749745,1860.6,1859.7,6.06006531]
[1772274068825,5.88749745,1860.6,1859.7,7.40436488]
[1772274068826,6.18851218,1860.6,1859.7,7.40436488]
[1772274070207,1.3437248,1860.5,1859.7,7.40436488]
[1772274070418,1.3437248,1860.5,1859.7,6.06006531]
[1772274070623,1.3437248,1860.5,1859.4,7.6359892]
[1772274070624,6.18851218,1860.4,1859.4,7.6359892]
[1772274070827,6.18851218,1860.4,1859.4,6.29151008]
[1772274071033,8.64249745,1860.3,1859.4,7.63602408]
[1772274071525,2.754,1860.3,1859.4,7.63602123]
[1772274072036,2.754,1860.3,1859.3,1.34457279]
[1772274072037,5.88749745,1860.2,1859.3,1.34457279]
[1772274072341,5.88749745,1860.2,1859.2,11.67004976]
[1772274072342,1.34401376,1860.1,1859.2,11.67004976]
[1772274072909,7.23151121,1860.1,1859.3,0.5]
[1772274074209,7.23151121,1860.1,1859.4,1.34451973]
[1772274075030,1.34401376,1860.1,1859.4,1.34451973]
[1772274075339,1.34401376,1860.1,1859.3,5.378231]
[1772274075340,8.64049745,1860.1,1859.2,7.63614265]
[1772274075533,1.34498773,1860.2,1859.2,7.63614265]
[1772274075534,5.88749745,1860.0,1859.2,7.63614265]
[1772274076531,9.98648518,1860.2,1859.2,7.63614265]
[1772274077808,5.88749745,1860.1,1859.2,6.29151008]
[1772274078139,5.88749745,1860.1,1859.2,7.63616989]
[1772274078638,4.09898773,1860.2,1859.4,6.29151008]
[1772274078639,2.755,1860.2,1859.4,6.29151008]
[1772274079213,0.001,1860.2,1859.4,6.29151008]
[1772274080331,5.88749745,1860.0,1859.0,6.29151008]
[1772274080636,5.88749745,1860.0,1858.8,5.38062552]
[1772274080637,5.88749745,1859.7,1858.8,1.3460532]
[1772274081440,5.88749745,1859.7,1858.8,7.63756328]
[1772274082607,1.34437513,1859.6,1858.8,7.63756328]
[1772274083150,7.51290193,1859.7,1858.8,7.63756328]
[1772274083857,1.62534987,1859.7,1858.9,6.29151008]
[1772274084648,7.51284732,1859.7,1858.9,6.29151008]
[1772274084867,7.51284732,1859.7,1859.0,1.34480903]
[1772274085728,1.62535521,1859.7,1859.0,7.63631911]
[1772274087517,1.62535521,1859.7,1859.1,0.0011]
[1772274087919,0.28104421,1859.7,1859.1,6.29261008]
[1772274089022,0.28104421,1859.7,1859.2,7.63617445]
[1772274089839,0.28104421,1859.7,1859.1,1.34579088]
[1772274089840,1.6253534,1859.7,1859.1,1.34579088]
[1772274091154,1.6253534,1859.7,1859.1,0.0011]
[1772274091338,0.28104421,1859.7,1859.1,0.0011]
[1772274091652,0.28104421,1859.7,1859.1,6.29261008]
[1772274091855,0.28104421,1859.7,1859.2,6.29151008]
[1772274093359,0.28104421,1859.7,1859.3,1.34459205]
[1772274094580,0.28104421,1859.7,1859.2,1.34460988]
[1772274094871,0.28104421,1859.7,1859.1,1.34580526]
[1772274094872,1.62536668,1859.7,1859.1,1.34580526]
[1772274095868,0.28104421,1859.7,1859.1,7.63731534]
[1772274097673,1.625368,1859.7,1859.1,7.63731534]
[1772274097855,0.28104421,1859.7,1859.1,7.63731534]
[1772274098053,1.62538677,1859.7,1859.1,7.63731534]
[1772274099968,1.62538677,1859.7,1859.1,6.29261008]
[1772274100281,1.62538677,1859.7,1859.1,7.63733923]
[1772274100481,1.62538677,1859.7,1859.2,0.0011]
[1772274100980,5.88749745,1859.6,1859.2,0.0011]
[1772274101888,1.62538677,1859.7,1859.2,0.0011]
[1772274102090,0.28104421,1859.7,1859.2,0.0011]
[1772274103183,0.28104421,1859.7,1859.2,5.99917047]
[1772274104662,0.28104421,1859.7,1859.3,1.34459205]
[1772274105080,0.28104421,1859.7,1859.3,7.34266252]
[1772274110312,7.04648367,1860.0,1859.4,5.99807047]
[1772274110515,0.28096938,1859.9,1859.4,5.99807047]
[1772274111007,0.28096938,1859.9,1859.5,1.34444743]
[1772274111507,6.16846683,1859.9,1859.4,1.34448588]
[1772274111981,7.51263187,1859.9,1859.4,1.34448588]
[1772274112300,6.5560649,1859.9,1859.4,1.34448588]
[1772274112516,7.90024059,1859.9,1859.4,1.34448588]
[1772274112724,7.51264252,1859.9,1859.4,1.34448588]
[1772274114331,7.51264252,1859.9,1859.4,0.0011]
[1772274115837,7.51264252,1859.9,1859.4,5.99917047]
[1772274116262,6.27509552,1859.8,1859.2,0.0011]
[1772274116530,5.88749745,1859.8,1859.2,0.0011]
[1772274116915,5.88749745,1859.8,1859.2,1.34576265]
[1772274117120,5.88749745,1859.8,1859.2,1.34575921]
[1772274117321,5.88749745,1859.8,1859.2,7.34382968]
[1772274118057,7.23175518,1859.8,1859.2,7.34382968]
[1772274122993,1.34425773,1859.8,1859.2,7.34382968]
[1772274123275,5.88639745,1860.3,1859.2,7.34382968]
[1772274123487,5.88639745,1860.1,1859.4,5.99807047]
[1772274123639,5.88639745,1860.1,1859.4,6.75024069]
[1772274124090,5.88639745,1860.1,1859.5,7.3425179]
[1772274124439,1.59,1860.3,1859.7,5.99807047]
[1772274124788,1.59,1860.3,1859.9,5.99807047]
[1772274126142,1.59,1860.3,1859.9,7.34220717]
[1772274126379,1.59,1860.3,1859.9,7.342211]
[1772274126874,5.72934785,1860.8,1859.9,7.342211]
[1772274126875,2.731,1860.7,1859.9,7.342211]
[1772274127969,0.001,1860.1,1859.9,7.342211]
[1772274128175,2.731,1860.7,1860.1,1.34401376]
[1772274128387,2.731,1860.7,1860.2,5.99807047]
[1772274128798,4.07459332,1860.7,1860.2,5.99807047]
[1772274128975,9.96099077,1860.7,1860.0,7.34209923]
[1772274129177,8.61739745,1860.7,1860.0,7.34209923]
[1772274129378,2.731,1860.7,1860.0,7.34209923]
[1772274130067,5.97158545,1860.9,1860.1,3.76079114]
[1772274130269,1.42863096,1860.9,1860.4,5.99807047]
[1772274130599,0.085188,1860.9,1860.4,5.99807047]
[1772274132307,0.085188,1860.9,1859.6,6.2510767]
[1772274132308,5.88639745,1860.6,1859.6,6.2510767]
[1772274132469,2.729,1860.6,1859.8,6.2510767]
[1772274133102,8.61539745,1860.6,1859.8,6.2510767]
[1772274133766,1.73847306,1860.8,1859.8,6.2510767]
[1772274133767,8.61339745,1860.7,1859.8,6.2510767]
[1772274134783,10.35201216,1860.7,1859.9,1.34415828]
[1772274135108,10.35201216,1860.7,1860.0,6.2510767]
[1772274135347,0.085188,1860.9,1860.5,6.2510767]
[1772274135615,0.085188,1860.9,1860.4,3.76079114]
[1772274135616,0.085188,1860.9,1860.7,6.2510767]
[1772274136181,0.085188,1860.9,1860.5,6.2510767]
[1772274137422,0.085188,1860.9,1860.7,6.2510767]
[1772274137789,1.3797454,1861.0,1860.7,6.2510767]
[1772274137992,7.60095983,1861.4,1860.7,6.2510767]
[1772274139284,7.68614783,1861.4,1860.7,6.2510767]
[1772274139816,7.68614783,1861.4,1860.7,7.59461996]
[1772274140423,0.001,1861.3,1860.7,7.59461996]
[1772274140621,5.97258545,1861.3,1860.7,6.2510767]
[1772274140825,5.97258545,1861.3,1860.2,5.37573399]
[1772274140826,5.97258545,1861.3,1860.3,7.59490429]
[1772274141728,7.31480487,1861.2,1860.5,6.2510767]
[1772274141889,5.37387771,1861.3,1860.3,1.34382759]
[1772274141890,1.34420206,1861.3,1860.7,6.2510767]
[1772274142229,1.34416312,1861.3,1860.7,6.2510767]
[1772274143888,1.34416312,1861.3,1860.7,7.59465433]
[1772274144673,5.97258545,1861.3,1860.7,6.2510767]
[1772274145172,5.97258545,1861.3,1860.7,7.59465401]
[1772274145841,1.34321942,1861.2,1860.7,6.2510767]
[1772274146578,7.31480487,1861.2,1860.7,6.2510767]
[1772274146747,7.31480487,1861.2,1860.5,7.59474804]
[1772274148562,0.001,1861.3,1860.7,6.2510767]
[1772274148855,1.34415551,1861.3,1860.7,6.2510767]
[1772274149795,1.34415551,1861.3,1860.3,5.37547411]
[1772274149796,5.97158545,1861.0,1860.2,7.59501186]
[1772274149966,2.721,1860.9,1860.2,7.59501186]
[1772274150162,4.06443699,1860.9,1860.2,7.59501186]
[1772274150369,4.06443831,1860.9,1860.2,7.59501186]
[1772274150587,4.06443831,1860.9,1859.8,6.2510767]
[1772274150588,5.97158545,1860.8,1859.8,6.2510767]
[1772274151266,5.97158545,1860.6,1859.8,6.2510767]
[1772274152352,7.31531025,1860.5,1860.3,0.0011]
[1772274153154,7.31531025,1860.5,1860.2,0.0011]
[1772274153692,2.721,1860.9,1860.2,0.0011]
[1772274153693,7.31576442,1861.3,1860.5,6.2510767]
[1772274153897,7.31576442,1861.3,1860.3,6.2510767]
[1772274154458,7.31576442,1861.3,1860.3,7.59493084]
[1772274154657,7.31576442,1861.3,1860.3,6.2510767]
[1772274154860,5.97158545,1861.1,1860.3,7.59494158]
[1772274155072,5.97158545,1861.1,1860.3,6.2510767]
[1772274156072,5.97158545,1861.1,1860.2,0.0011]
[1772274156284,5.97158545,1861.1,1860.2,6.2521767]
[1772274156588,7.31494923,1861.0,1860.2,6.2521767]
[1772274157897,7.31494923,1861.0,1860.2,7.59611761]
[1772274158595,7.31494923,1861.0,1860.2,6.2521767]
[1772274159487,7.31494923,1861.0,1860.2,7.59610563]
[1772274160195,7.31494923,1861.0,1860.2,6.2521767]
[1772274160570,5.97158545,1860.9,1860.2,6.2521767]
[1772274160761,5.97158545,1860.9,1860.2,0.0011]
[1772274162364,5.97158545,1860.9,1860.2,6.47388424]
[1772274162772,1.34350816,1860.8,1860.2,6.47388424]
[1772274162970,1.34350816,1860.8,1860.2,7.81781525]
[1772274162971,2.722,1860.7,1860.2,7.81781525]
[1772274163274,8.17342957,1860.7,1860.2,0.0011]
[1772274163463,5.95106192,1860.6,1860.2,0.0011]
[1772274163663,2.22236765,1860.7,1860.2,0.0011]
[1772274164178,2.22236765,1860.7,1860.2,6.47388424]
[1772274164385,0.001,1861.3,1860.6,3.76079114]
[1772274164579,1.34415631,1861.3,1860.7,6.47278424]
[1772274164901,0.001,1861.3,1860.7,7.81631105]
[1772274165623,0.001,1861.2,1860.7,7.81631105]
[1772274165836,7.29382639,1861.9,1861.1,3.76079114]
[1772274166119,7.29382639,1861.9,1861.2,6.47278424]
[1772274166469,5.95106192,1862.4,1861.4,10.23357538]
[1772274166767,1.34249812,1862.2,1861.4,7.81584662]
[1772274167001,1.34246243,1862.3,1861.5,6.47278424]
[1772274167205,1.69403858,1862.3,1861.5,6.47278424]
[1772274168911,1.69403858,1862.3,1861.7,6.47278424]
[1772274169316,0.35157615,1862.2,1861.7,6.47278424]
[1772274169739,0.35157615,1862.2,1861.4,6.47278424]
[1772274169891,5.95106192,1862.1,1861.2,6.47278424]
[1772274170223,1.34246243,1862.3,1861.2,6.47278424]
[1772274170224,6.30263807,1862.0,1861.2,6.47278424]
[1772274170389,5.95106192,1861.7,1860.7,7.81636461]
[1772274170588,6.32322141,1861.7,1860.8,6.47278424]
[1772274170988,1.34293081,1861.6,1860.8,6.47278424]
[1772274171187,5.95106192,1861.5,1860.8,6.47278424]
[1772274171517,2.72,1861.4,1860.8,7.81627833]
[1772274171812,7.29399273,1861.6,1860.8,7.81627833]
[1772274172716,1.71507343,1861.7,1860.8,7.81627833]
[1772274173420,1.34291394,1861.7,1860.8,7.81627833]
[1772274174020,2.718,1861.6,1860.8,7.81627833]
[1772274175317,4.06093939,1861.6,1860.8,7.81627833]
[1772274176988,10.3841608,1861.6,1860.8,7.81627833]
[1772274177199,0.37215949,1861.5,1860.8,7.81627833]
[1772274177417,0.37215949,1861.5,1860.9,0.0011]
[1772274177632,1.3430751,1861.4,1860.9,0.0011]
[1772274177926,1.3430751,1861.4,1860.9,6.47388424]
[1772274178121,1.34305376,1861.5,1860.9,6.47388424]
[1772274178427,2.713,1861.5,1860.9,6.47388424]
[1772274178729,2.713,1861.5,1860.8,0.0011]
[1772274178730,5.95106192,1861.4,1860.8,0.0011]
[1772274178908,2.714,1861.4,1860.8,7.8173906]
[1772274179621,4.0571372,1861.4,1860.8,6.47388424]
[1772274179821,10.00819912,1861.4,1860.8,6.47388424]
[1772274180191,5.95106192,1861.3,1860.8,0.0011]
[1772274180909,5.95106192,1861.1,1860.8,0.0011]
[1772274181225,5.95106192,1861.1,1860.4,6.47278424]
[1772274181687,5.95106192,1860.9,1860.3,6.47388424]
[1772274181888,6.32322141,1860.9,1860.3,0.0011]
[1772274182084,5.95106192,1860.8,1860.3,0.0011]
[1772274182303,2.714,1860.7,1860.3,0.0011]
[1772274182599,0.37215949,1860.6,1860.3,0.0011]
[1772274182999,0.37215949,1860.6,1859.7,5.37708241]
[1772274183000,6.32322141,1860.6,1859.7,6.47278424]
[1772274183413,6.32322141,1860.5,1859.7,6.47278424]
[1772274183726,1.34379703,1860.4,1859.7,7.81706611]
[1772274184236,1.34379703,1860.4,1859.7,6.47278424]
[1772274184392,1.34379703,1860.4,1859.7,7.8170813]
[1772274184598,1.34379703,1860.4,1859.7,6.47278424]
[1772274185296,1.34379703,1860.4,1859.5,0.0011]
[1772274185297,5.95106192,1860.3,1859.5,0.0011]
[1772274185494,5.95106192,1860.1,1859.5,0.0011]
[1772274185732,1.34408602,1860.0,1859.5,0.0011]
[1772274185934,7.29514794,1860.0,1859.5,0.0011]
[1772274186323,1.34406711,1860.1,1859.5,6.47388424]
[1772274186633,2.713,1860.0,1859.5,6.47388424]
[1772274186999,5.95106192,1859.9,1859.5,0.0011]
[1772274187234,5.95106192,1859.9,1859.4,0.0011]
[1772274188011,1.34423056,1859.8,1859.4,0.0011]
[1772274188440,7.29529248,1859.8,1859.4,0.0011]
[1772274188604,1.34365258,1860.6,1859.7,6.47278424]
[1772274188801,7.29468713,1860.7,1859.7,6.47278424]
[1772274189603,1.69429227,1860.8,1859.7,6.47278424]
[1772274189803,1.34351156,1860.8,1859.9,6.47278424]
[1772274190139,1.34351156,1860.8,1860.1,6.47278424]
[1772274190339,7.29457348,1860.8,1860.1,6.47278424]
[1772274190827,0.001,1860.3,1860.1,6.47278424]
[1772274191468,0.001,1860.3,1859.8,5.88132277]
[1772274191809,0.001,1860.3,1859.5,7.22682686]
[1772274192039,1.34486926,1860.3,1859.5,7.22682686]
[1772274192242,1.34486926,1860.3,1859.5,7.22686658]
[1772274193051,0.001,1860.3,1859.5,7.22686658]
[1772274199140,0.001,1860.3,1859.8,5.88132277]
[1772274200270,0.001,1860.3,1859.9,1.34415828]
[1772274202170,0.001,1860.3,1860.0,5.88132277]
[1772274202391,11.29987047,1860.9,1860.0,5.88132277]
[1772274202392,7.26956641,1860.9,1860.0,5.88132277]
[1772274202691,6.76993406,1860.9,1860.0,5.88132277]
[1772274204986,7.07857002,1861.4,1860.6,5.88132277]
[1772274205483,5.73544976,1861.4,1860.6,5.88132277]
[1772274205696,2.698,1861.5,1860.6,5.88132277]
[1772274205697,9.77645581,1861.5,1860.6,5.88132277]
[1772274205901,5.73544976,1861.4,1860.6,5.88132277]
[1772274206765,4.04100605,1861.5,1860.6,5.88132277]
[1772274207163,4.04100605,1861.5,1860.7,1.34358037]
[1772274207355,9.77645581,1861.5,1860.8,5.88132277]
[1772274207550,5.73544976,1861.4,1860.6,5.88132277]
[1772274208658,5.73544976,1861.4,1860.1,3.65501376]
[1772274208659,5.73544976,1861.1,1860.2,5.88132277]
[1772274209286,1.34336378,1861.0,1860.4,5.88132277]
[1772274211476,5.37333663,1861.1,1860.4,7.22505375]
[1772274212392,1.3432916,1861.1,1860.4,7.22505375]
[1772274214376,0.001,1860.9,1860.4,7.22505375]
[1772274218393,5.37230991,1861.4,1860.4,7.22505375]
[1772274218394,5.37108812,1861.9,1860.8,5.25933007]
[1772274218732,0.28042664,1861.9,1860.9,5.88132277]
[1772274219097,7.07909208,1862.1,1861.0,5.88132277]
[1772274220397,7.42984323,1862.1,1861.0,5.88132277]
[1772274220597,7.07909208,1862.1,1861.2,6.388803]
[1772274221031,4.03055405,1862.2,1861.3,6.388803]
[1772274221713,5.73644976,1862.1,1861.3,6.388803]
[1772274221916,6.12270091,1862.1,1861.3,6.388803]
[1772274222115,0.38625115,1862.1,1861.3,6.388803]
[1772274222522,4.4168052,1862.2,1861.5,5.98653276]
[1772274222727,1.34250903,1862.2,1861.5,5.98653276]
[1772274223054,1.72876018,1862.2,1861.5,5.98653276]
[1772274223346,6.12270091,1862.1,1861.4,7.32960786]
[1772274223706,1.34250903,1862.2,1861.4,7.32960786]
[1772274223909,1.72876018,1862.2,1861.4,7.32960786]
[1772274224137,0.38625115,1862.1,1861.4,7.32960786]
[1772274225223,1.34250903,1862.2,1861.4,7.32960786]
[1772274225426,9.76392681,1862.3,1861.4,7.32960786]
[1772274225621,7.46517796,1862.3,1861.4,7.32960786]
[1772274225934,0.38625115,1862.2,1861.4,7.32960786]
[1772274226133,6.12270091,1862.2,1861.4,7.32960786]
[1772274226727,1.34257021,1862.1,1861.4,7.32960786]
[1772274226922,1.34357021,1862.1,1861.4,7.32960786]
[1772274227123,1.72982136,1862.1,1861.4,5.98653276]
[1772274227327,6.12270091,1862.0,1861.4,5.98653276]
[1772274227529,5.73644976,1862.0,1861.4,5.98653276]
[1772274227739,5.73644976,1862.0,1861.4,7.3295913]
[1772274227932,5.73644976,1862.0,1861.4,5.98653276]
[1772274228341,6.12270091,1862.0,1861.4,5.98653276]
[1772274228524,1.34357021,1862.1,1861.4,7.32959901]
[1772274228719,7.46627112,1862.1,1861.4,5.98653276]
[1772274228919,5.73644976,1862.0,1861.4,5.98653276]
[1772274229144,6.12270091,1862.0,1861.4,7.32960219]
[1772274229441,6.12270091,1862.0,1861.4,7.3296059]
[1772274229643,5.73644976,1862.0,1861.4,7.3296059]
[1772274229816,2.68,1862.0,1861.4,7.3296059]
[1772274230017,3.06625115,1862.0,1861.4,7.3296059]
[1772274230737,10.14539087,1862.0,1861.4,7.3296059]
[1772274231119,10.14539087,1862.0,1861.3,1.34312024]
[1772274231120,5.73644976,1861.9,1861.3,1.34312024]
[1772274231726,5.73644976,1861.9,1861.2,5.98653276]
[1772274231944,5.73644976,1861.9,1861.2,7.32974145]
[1772274232442,6.12270091,1861.9,1861.1,1.34324157]
[1772274232642,5.73644976,1861.9,1861.1,7.32977433]
[1772274232847,1.34278655,1861.8,1861.1,7.32977433]
[1772274233557,1.34278655,1861.8,1860.9,7.32991725]
[1772274233558,7.07923631,1861.8,1860.9,7.32991725]
[1772274234317,5.73644976,1861.7,1860.9,7.32991725]
[1772274234943,1.34293081,1861.6,1860.9,7.32991725]
[1772274235151,4.02093081,1861.6,1860.9,7.32991725]
[1772274237450,5.73644976,1861.5,1860.8,1.34347263]
[1772274237655,5.73644976,1861.5,1860.8,7.33000539]
[1772274238556,5.73644976,1861.5,1860.8,7.33003119]
[1772274239454,1.3430751,1861.4,1860.8,7.33003119]
[1772274239766,1.3430751,1861.4,1861.0,0.0011]
[1772274240461,7.07952486,1861.4,1861.0,0.0011]
[1772274240865,5.73534976,1861.3,1860.5,5.98763276]
[1772274241429,5.73534976,1861.8,1861.0,9.74203436]
[1772274241658,5.73534976,1861.8,1861.0,5.98653276]
[1772274241974,5.73534976,1861.7,1860.7,5.98653276]
[1772274242179,5.73534976,1861.5,1860.7,5.98653276]
[1772274243928,7.07842486,1861.4,1860.7,7.33007547]
[1772274244130,5.73534976,1861.3,1860.7,5.98653276]
[1772274244935,5.73534976,1861.3,1860.5,7.33130114]
[1772274245134,6.11910091,1861.3,1860.5,5.98763276]
[1772274245349,5.73534976,1861.3,1860.5,5.98763276]
[1772274245833,6.11910091,1861.2,1860.5,0.0011]
[1772274246035,5.73534976,1861.0,1860.5,0.0011]
[1772274247935,1.34343597,1860.9,1860.5,0.0011]
[1772274249633,7.07878573,1860.9,1860.5,0.0011]
[1772274249838,7.07878573,1860.9,1860.4,0.0011]
[1772274250039,1.34358037,1860.7,1860.4,0.0011]
[1772274250352,2.681,1860.6,1860.4,0.0011]
[1772274250753,8.41524976,1860.6,1860.2,0.0011]
[1772274251485,5.73424976,1860.5,1860.2,0.0011]
[1772274251772,6.11800091,1860.5,1860.2,0.0011]
[1772274252072,5.73424976,1860.5,1860.2,0.0011]
[1772274252237,7.07804679,1860.4,1859.7,5.95359738]
[1772274252437,5.73424976,1860.2,1859.6,0.0011]
[1772274252769,2.683,1860.1,1859.6,0.0011]
[1772274253082,8.41724976,1860.1,1859.6,0.0011]
[1772274253870,5.73424976,1860.0,1859.6,0.0011]
[1772274254240,1.34415828,1859.9,1859.6,0.0011]
[1772274254848,7.07840804,1859.9,1859.6,0.0011]
[1772274255165,7.07840804,1859.9,1859.4,0.0011]
[1772274255379,7.07840804,1859.9,1859.3,0.0011]
[1772274255560,5.73314976,1859.8,1859.3,0.0011]
[1772274255748,2.685,1859.7,1859.3,0.0011]
[1772274255950,8.41814976,1859.7,1859.3,0.0011]
[1772274256259,1.34437513,1859.6,1859.3,0.0011]
[1772274256484,5.75979184,1860.3,1859.3,0.0011]
[1772274256485,1.34368144,1860.6,1859.7,5.95359738]
[1772274256662,1.34360305,1860.7,1860.0,5.95359738]
[1772274256972,2.693,1860.6,1860.0,5.95359738]
[1772274258474,2.693,1860.6,1860.0,7.29764423]
[1772274259977,4.03665992,1860.6,1860.0,7.29767431]